lending/lending_fUSD_20250501
["ID","MTS","AMOUNT","RATE_DAILY","PERIOD"]
[359577322,1746137468669,-9585.54,0.00036164,11]
[359577323,1746137468679,-676.92,0.00036164,11]
[359577324,1746137468687,-206.969916,0.00036164,7]
[359577325,1746137468697,-2318.28,0.00036164,11]
[359577326,1746137468707,-4378.04,0.00036164,11]
[359577327,1746137468716,-3012.42,0.00036164,11]
[359577328,1746137468725,-885.02,0.00036164,11]
[359577329,1746137468735,-696.87,0.00036164,11]
[359577330,1746137468744,-613.1,0.00036164,11]
[359577331,1746137468753,-450.0,0.00036164,11]
[359577332,1746137468763,-450.0,0.00036164,11]
[359577333,1746137468772,-974.13,0.00036164,11]
[359577334,1746137468782,-847.91,0.00036164,11]
[359577335,1746137468791,-1017.95,0.00036164,11]
[359577336,1746137468800,-450.0,0.00036164,11]
[359577337,1746137468809,-133710.78,0.00036164,11]
[359577338,1746137468818,-450.0,0.00036164,11]
[359577339,1746137468827,-840.55,0.00036164,11]
[359577340,1746137468836,-151.0,0.00036164,7]
[359577341,1746137468847,-892.78,0.00036164,11]
[359577342,1746137468856,-717.99,0.00036164,11]
[359577343,1746137468866,-644.23,0.00036164,11]
[359577344,1746137468875,-450.0,0.00036164,11]
[359577345,1746137468885,-583.23,0.00036164,11]
[359577346,1746137468895,-450.0,0.00036164,11]
[359577347,1746137468905,-1339.22,0.00036164,11]
[359577348,1746137468914,-450.0,0.00036164,11]
[359577349,1746137468923,-450.0,0.00036164,11]
[359577350,1746137468933,-450.0,0.00036164,11]
[359577351,1746137468944,-392.72172543,0.00036164,11]
[359577352,1746137468954,-450.0,0.00036164,11]
[359577353,1746137468964,-523.49,0.00036164,11]
[359577354,1746137468973,-1072.81,0.00036164,11]
[359577355,1746137468983,-450.0,0.00036164,11]
[359577356,1746137468992,-450.0,0.00036164,11]
[359577357,1746137469001,-450.0,0.00036164,11]
[359577358,1746137469011,-907.07,0.00036164,11]
[359577359,1746137469021,-1000.0,0.00036164,11]
[359577360,1746137469030,-624.88,0.00036164,11]
[359577361,1746137469040,-1215.87,0.00036164,11]
[359577362,1746137469049,-3069.31,0.00036164,11]
[359577363,1746137469059,-9732.88,0.00036164,11]
[359577364,1746137469069,-450.0,0.00036164,11]
[359577365,1746137469079,-450.0,0.00036164,11]
[359577366,1746137469089,-450.0,0.00036164,11]
[359577367,1746137469098,-450.0,0.00036164,11]
[359577368,1746137469108,-1961.5,0.00036164,11]
[359577369,1746137469118,-471.05,0.00036164,11]
[359577370,1746137469128,-521.46,0.00036164,11]
[359577371,1746137469138,-487.41,0.00036164,11]
[359577372,1746137469148,-592.41999,0.00036164,7]
[359577373,1746137469157,-498.33,0.00036164,11]
[359577374,1746137469167,-899.57,0.00036164,11]
[359577375,1746137469176,-395.77031143,0.00036164,11]
[359577376,1746137469186,-934.55,0.00036164,11]
[359577377,1746137469196,-169.372927,0.00036164,7]
[359577378,1746137469206,-5058.13,0.00036164,11]
[359577379,1746137469215,-592.41999,0.00036164,7]
[359577380,1746137469225,-460.53,0.00036164,11]
[359577381,1746137469234,-310.49866978,0.00036164,11]
[359577382,1746137469243,-152.817659,0.00036164,7]
[359577383,1746137469253,-1328.85,0.00036164,11]
[359577384,1746137469265,-450.0,0.00036164,11]
[359577385,1746137469275,-169.372927,0.00036164,7]
[359577386,1746137469284,-820.6,0.00036164,11]
[359577387,1746137469293,-601.68,0.00036164,11]
[359577388,1746137469302,-450.0,0.00036164,11]
[359577389,1746137469312,-450.0,0.00036164,11]
[359577390,1746137469323,-450.0,0.00036164,11]
[359577391,1746137469335,-2507.79,0.00036164,11]
[359577392,1746137469344,-1356.12,0.00036164,11]
[359577393,1746137469354,-450.0,0.00036164,11]
[359577394,1746137469364,-450.0,0.00036164,11]
[359577395,1746137469374,-859.71,0.00036164,11]
[359577396,1746137469384,-450.0,0.00036164,11]
[359577397,1746137469393,-450.0,0.00036164,11]
[359577398,1746137469404,-482.59,0.00036164,11]
[359577399,1746137469413,-1193.59,0.00036164,11]
[359577400,1746137469423,-450.0,0.00036164,11]
[359577401,1746137469432,-1103.54,0.00036164,11]
[359577402,1746137469442,-450.0,0.00036164,11]
[359577403,1746137469452,-450.0,0.00036164,11]
[359577404,1746137469462,-26036.84,0.00036164,11]
[359577405,1746137469472,-450.0,0.00036164,11]
[359577406,1746137469481,-1811.96,0.00036164,11]
[359577407,1746137469492,-544.10115924,0.00036164,11]
[359577408,1746137469501,-735.7,0.00036164,11]
[359577409,1746137469511,-434.0,0.00036164,11]
[359577410,1746137469520,-450.0,0.00036164,11]
[359577411,1746137469530,-1713.49,0.00036164,8]
[359577412,1746137469539,-602.11,0.00036164,11]
[359577413,1746137469549,-450.0,0.00036164,11]
[359577414,1746137469559,-450.0,0.00036164,11]
[359577415,1746137469568,-450.0,0.00036164,11]
[359577416,1746137469578,-539.9,0.00036164,11]
[359577417,1746137469588,-1091.6,0.00036164,11]
[359577418,1746137469599,-567.09993828,0.00036164,11]
[359577419,1746137469608,-450.0,0.00036164,11]
[359577420,1746137469618,-450.0,0.00036164,11]
[359577421,1746137469628,-258.13106604,0.00036164,2]
[359577422,1746137469638,-450.0,0.00036164,11]
[359577423,1746137469648,-450.0,0.00036164,11]
[359577424,1746137469658,-150.0,0.00036164,11]
[359577425,1746137469668,-500.0,0.00036164,11]
[359577426,1746137469678,-735.81,0.00036164,11]
[359577427,1746137469688,-450.0,0.00036164,11]
[359577428,1746137469698,-909.63,0.00036164,11]
[359577429,1746137469707,-150.0,0.00036164,2]
[359577430,1746137469717,-450.0,0.00036164,11]
[359577431,1746137469727,-450.0,0.00036164,11]
[359577432,1746137469737,-450.0,0.00036164,11]
[359577433,1746137469747,-667.64,0.00036164,11]
[359577434,1746137469757,-500.64,0.00036164,11]
[359577435,1746137469767,-985.57,0.00036164,11]
[359577436,1746137469777,-450.0,0.00036164,11]
[359577437,1746137469787,-500.0,0.00036164,11]
[359577438,1746137469797,-918.4,0.00036164,11]
[359577439,1746137469807,-450.0,0.00036164,11]
[359577440,1746137469816,-450.0,0.00036164,11]
[359577441,1746137469826,-563.92,0.00036164,11]
[359577442,1746137469835,-450.0,0.00036164,11]
[359577443,1746137469846,-450.0,0.00036164,11]
[359577444,1746137469855,-911.62,0.00036164,11]
[359577445,1746137469865,-450.0,0.00036164,11]
[359577446,1746137469874,-917.86,0.00036164,11]
[359577447,1746137469884,-450.0,0.00036164,11]
[359577448,1746137469894,-771.26,0.00036164,11]
[359577449,1746137469903,-913.39,0.00036164,11]
[359577450,1746137469913,-450.0,0.00036164,11]
[359577451,1746137469923,-151.0,0.00036164,7]
[359577452,1746137469933,-632.41,0.00036164,11]
[359577453,1746137469942,-869.99,0.00036164,11]
[359577454,1746137469952,-500.0,0.00036164,11]
[359577455,1746137469962,-499.93,0.00036164,11]
[359577456,1746137469972,-450.0,0.00036164,11]
[359577457,1746137469982,-819.94,0.00036164,11]
[359577458,1746137469993,-450.0,0.00036164,11]
[359577459,1746137470002,-151.0,0.00036164,7]
[359577460,1746137470012,-450.0,0.00036164,11]
[359577461,1746137470022,-450.0,0.00036164,11]
[359577462,1746137470031,-450.0,0.00036164,11]
[359577463,1746137470041,-1094.62,0.00036164,11]
[359577464,1746137470050,-506.53,0.00036164,11]
[359577465,1746137470060,-842.29,0.00036164,11]
[359577466,1746137470070,-450.0,0.00036164,11]
[359577467,1746137470079,-450.0,0.00036164,11]
[359577468,1746137470088,-1728.63,0.00036164,11]
[359577469,1746137470098,-1175.81,0.00036164,11]
[359577470,1746137470107,-1018.92,0.00036164,11]
[359577472,1746137470116,-450.0,0.00036164,11]
[359577473,1746137470126,-243.25498689,0.00036164,11]
[359577474,1746137470136,-450.0,0.00036164,11]
[359577475,1746137470145,-541.67,0.00036164,11]
[359577476,1746137470155,-450.0,0.00036164,11]
[359577477,1746137470164,-698.22,0.00036164,11]
[359577478,1746137470173,-754.88,0.00036164,11]
[359577479,1746137470183,-934.17,0.00036164,11]
[359577480,1746137470192,-561.55,0.00036164,11]
[359577481,1746137470202,-450.0,0.00036164,11]
[359577482,1746137470211,-450.0,0.00036164,11]
[359577483,1746137470221,-1063.07,0.00036164,11]
[359577484,1746137470230,-1394.71,0.00036164,11]
[359577485,1746137470240,-450.0,0.00036164,11]
[359577486,1746137470249,-450.0,0.00036164,11]
[359577487,1746137470260,-450.0,0.00036164,11]
[359577488,1746137470272,-634.39,0.00036164,11]
[359577489,1746137470282,-499.1,0.00036164,11]
[359577490,1746137470292,-539.78,0.00036164,11]
[359577491,1746137470302,-450.0,0.00036164,11]
[359577492,1746137470312,-556.66,0.00036164,11]
[359577493,1746137470322,-1762.62,0.00036164,11]
[359577494,1746137470335,-151.0,0.00036164,7]
[359577495,1746137470345,-450.0,0.00036164,11]
[359577496,1746137470355,-840.52,0.00036164,11]
[359577497,1746137470364,-4646.57,0.00036164,11]
[359577498,1746137470374,-450.0,0.00036164,11]
[359577499,1746137470384,-450.0,0.00036164,11]
[359577500,1746137470394,-506.63,0.00036164,11]
[359577501,1746137470406,-901.41,0.00036164,11]
[359577502,1746137470416,-1284.0,0.00036164,11]
[359577503,1746137470426,-450.0,0.00036164,11]
[359577504,1746137470436,-911.57,0.00036164,11]
[359577505,1746137470446,-1195.77,0.00036164,11]
[359577506,1746137470456,-3828.21,0.00036164,11]
[359577507,1746137470466,-450.0,0.00036164,11]
[359577508,1746137470476,-787.8,0.00036164,11]
[359577509,1746137470487,-450.0,0.00036164,11]
[359577510,1746137470497,-1985.19,0.00036164,11]
[359577511,1746137470507,-5579.35,0.00036164,11]
[359577512,1746137470518,-513.8,0.00036164,11]
[359577513,1746137470528,-563.9,0.00036164,11]
[359577514,1746137470538,-546.39,0.00036164,11]
[359577515,1746137470548,-450.0,0.00036164,11]
[359577516,1746137470558,-450.0,0.00036164,11]
[359577517,1746137470568,-780.51,0.00036164,11]
[359577518,1746137470578,-692.91,0.00036164,11]
[359577520,1746137470587,-883.92,0.00036164,11]
[359577521,1746137470597,-450.0,0.00036164,11]
[359577522,1746137470607,-450.0,0.00036164,11]
[359577523,1746137470616,-1374.59,0.00036164,11]
[359577524,1746137470626,-450.0,0.00036164,11]
[359577525,1746137470636,-450.0,0.00036164,11]
[359577526,1746137470645,-450.0,0.00036164,11]
[359577527,1746137470655,-151.0,0.00036164,7]
[359577528,1746137470665,-1190.64,0.00036164,11]
[359577529,1746137470675,-450.0,0.00036164,11]
[359577530,1746137470684,-450.0,0.00036164,11]
[359577531,1746137470694,-184.355505,0.00036164,7]
[359577532,1746137470704,-504.86,0.00036164,11]
[359577533,1746137470714,-560.05,0.00036164,11]
[359577534,1746137470724,-450.0,0.00036164,11]
[359577535,1746137470734,-726.16,0.00036164,11]
[359577536,1746137470744,-1288.94,0.00036164,11]
[359577537,1746137470754,-184.355505,0.00036164,7]
[359577538,1746137470765,-450.0,0.00036164,11]
[359577539,1746137470775,-699.05,0.00036164,11]
[359577540,1746137470785,-918.28,0.00036164,11]
[359577541,1746137470794,-500.0,0.00036164,11]
[359577542,1746137470804,-450.0,0.00036164,11]
[359577543,1746137470814,-450.0,0.00036164,11]
[359577544,1746137470823,-4227.14,0.00036164,11]
[359577545,1746137470833,-450.0,0.00036164,11]
[359577546,1746137470843,-876.41,0.00036164,11]
[359577547,1746137470854,-450.0,0.00036164,11]
[359577548,1746137470865,-492.77,0.00036164,11]
[359577549,1746137470874,-1796.83,0.00036164,11]
[359577550,1746137470884,-13693.55,0.00036164,11]
[359577551,1746137470894,-475.14,0.00036164,11]
[359577552,1746137470904,-1840.92,0.00036164,11]
[359577553,1746137470913,-450.0,0.00036164,11]
[359577554,1746137470923,-450.0,0.00036164,11]
[359577555,1746137470933,-450.0,0.00036164,11]
[359577556,1746137470943,-1096.09,0.00036164,11]
[359577557,1746137470954,-558.89,0.00036164,11]
[359577558,1746137470963,-727.5,0.00036164,11]
[359577559,1746137470973,-763.85,0.00036164,11]
[359577560,1746137470983,-1459.52,0.00036164,11]
[359577561,1746137470992,-1250.93,0.00036164,11]
[359577562,1746137471002,-450.0,0.00036164,11]
[359577563,1746137471012,-450.0,0.00036164,11]
[359577564,1746137471206,-450.0,0.00036164,11]
[359577565,1746137471215,-450.0,0.00036164,11]
[359577566,1746137471225,-450.0,0.00036164,11]
[359577567,1746137471234,-450.0,0.00036164,11]
[359577568,1746137471243,-12090.2,0.00036164,2]
[359577569,1746137471253,-500.0,0.00036164,2]
[359577570,1746137471263,-450.0,0.00036164,11]
[359577571,1746137471272,-450.0,0.00036164,11]
[359577572,1746137471282,-1445.69,0.00036164,11]
[359577573,1746137471291,-500.0,0.00036164,11]
[359577574,1746137471300,-450.0,0.00036164,11]
[359577575,1746137471309,-450.0,0.00036164,11]
[359577576,1746137471318,-150.0,0.00036164,11]
[359577577,1746137471332,-478.97,0.00036164,11]
[359577578,1746137471341,-450.0,0.00036164,11]
[359577579,1746137471351,-450.0,0.00036164,11]
[359577580,1746137471360,-450.0,0.00036164,11]
[359577581,1746137471369,-150.0,0.00036164,11]
[359577582,1746137471379,-468.79,0.00036164,11]
[359577583,1746137471388,-450.0,0.00036164,11]
[359577584,1746137471397,-870.39,0.00036164,11]
[359577585,1746137471406,-579.31,0.00036164,11]
[359577586,1746137471416,-450.0,0.00036164,11]
[359577587,1746137471425,-463.2,0.00036164,11]
[359577588,1746137471434,-705.22,0.00036164,11]
[359577589,1746137471443,-150.0,0.00036164,11]
[359577590,1746137471452,-151.0,0.00036164,7]
[359577591,1746137471461,-910.25,0.00036164,11]
[359577592,1746137471471,-150.0,0.00036164,11]
[359577593,1746137471480,-2800.3,0.00036164,11]
[359577594,1746137471490,-326.01041548,0.00036164,11]
[359577595,1746137471499,-450.0,0.00036164,11]
[359577596,1746137471508,-668.14,0.00036164,11]
[359577597,1746137471518,-450.0,0.00036164,11]
[359577598,1746137471527,-450.0,0.00036164,2]
[359577599,1746137471536,-701.88,0.00036164,11]
[359577600,1746137471545,-459.07,0.00036164,11]
[359577601,1746137471554,-450.0,0.00036164,11]
[359577602,1746137471563,-2193.753291,0.00036164,11]
[359577603,1746137471572,-530.32,0.00036164,11]
[359577604,1746137471582,-450.0,0.00036164,11]
[359577605,1746137471591,-1784.68,0.00036164,11]
[359577606,1746137471600,-450.0,0.00036164,11]
[359577607,1746137471609,-679.98,0.00036164,11]
[359577608,1746137471618,-450.0,0.00036164,11]
[359577609,1746137471628,-450.0,0.00036164,11]
[359577610,1746137471637,-1515.86,0.00036164,11]
[359577611,1746137471646,-450.0,0.00036164,11]
[359577612,1746137471656,-1022.27,0.00036164,11]
[359577613,1746137471665,-351.92,0.00036164,2]
[359577614,1746137471674,-150.0,0.00036164,2]
[359577615,1746137471683,-150.0,0.00036164,2]
[359577616,1746137471692,-162.16,0.00036164,2]
[359577617,1746137471701,-451.39,0.00036164,2]
[359577618,1746137471711,-150.0,0.00036164,2]
[359577619,1746137471720,-162.16,0.00036164,2]
[359577620,1746137471729,-351.92,0.00036164,2]
[359577621,1746137471738,-150.0,0.00036164,2]
[359577622,1746137471746,-162.16,0.00036164,2]
[359577623,1746137471755,-451.39,0.00036164,2]
[359577624,1746137471764,-351.92,0.00036164,2]
[359577625,1746137471774,-150.0,0.00036164,2]
[359577626,1746137471783,-162.16,0.00036164,2]
[359577627,1746137471792,-150.0,0.00036164,2]
[359577628,1746137471801,-351.92,0.00036164,2]
[359577629,1746137471811,-451.39,0.00036164,2]
[359577630,1746137471820,-150.0,0.00036164,2]
[359577631,1746137471829,-451.39,0.00036164,2]
[359577632,1746137471839,-162.16,0.00036164,2]
[359577633,1746137471848,-150.0,0.00036164,2]
[359577634,1746137471857,-351.92,0.00036164,2]
[359577635,1746137471867,-239.2,0.00036164,2]
[359577636,1746137471876,-451.39,0.00036164,2]
[359577637,1746137471885,-150.0,0.00036164,2]
[359577638,1746137471895,-150.0,0.00036164,2]
[359577639,1746137471904,-351.92,0.00036164,2]
[359577640,1746137471913,-911.83,0.00036164,2]
[359577641,1746137471923,-150.0,0.00036164,2]
[359577642,1746137471933,-150.0,0.00036164,2]
[359577643,1746137471942,-150.0,0.00036164,2]
[359577644,1746137471952,-351.92,0.00036164,2]
[359577645,1746137471962,-150.0,0.00036164,2]
[359577646,1746137471971,-150.0,0.00036164,2]
[359577647,1746137471981,-351.92,0.00036164,2]
[359577648,1746137471991,-351.92,0.00036164,2]
[359577649,1746137472001,-150.0,0.00036164,2]
[359577650,1746137472011,-150.0,0.00036164,2]
[359577651,1746137472022,-351.92,0.00036164,2]
[359577652,1746137472031,-351.92,0.00036164,2]
[359577653,1746137472040,-150.0,0.00036164,2]
[359577654,1746137472049,-351.92,0.00036164,2]
[359577655,1746137472058,-150.0,0.00036164,2]
[359577656,1746137472067,-351.92,0.00036164,2]
[359577657,1746137472077,-150.0,0.00036164,2]
[359577658,1746137472086,-150.0,0.00036164,2]
[359577659,1746137472095,-351.92,0.00036164,2]
[359577660,1746137472104,-150.75,0.00036164,2]
[359577661,1746137472114,-150.0,0.00036164,2]
[359577662,1746137472123,-150.0,0.00036164,2]
[359577663,1746137472134,-797.0,0.00036169,2]
[359577664,1746137472144,-663.4827,0.000362,2]
[359577665,1746137472154,-422.877,0.000362,2]
[359577666,1746137472163,-2000.0,0.00036256,3]
[359577667,1746137472172,-663.4827,0.000364,2]
[359577668,1746137472181,-422.877,0.000364,2]
[359577669,1746137472189,-663.4292,0.000364,2]
[359577670,1746137472198,-150.0,0.00036438,11]
[359577671,1746137472208,-500.0,0.00036438,11]
[359577672,1746137472217,-500.0,0.00036438,11]
[359577673,1746137472227,-520.76969686,0.00036438,11]
[359577674,1746137472236,-500.0,0.00036438,11]
[359577675,1746137472245,-434.0,0.00036438,11]
[359577676,1746137472255,-500.0,0.00036438,11]
[359577677,1746137472265,-500.0,0.00036438,11]
[359577678,1746137472275,-500.0,0.00036438,2]
[359577679,1746137472284,-500.0,0.00036438,11]
[359577680,1746137472293,-150.0,0.00036438,11]
[359577681,1746137472302,-164412.40799462,0.00036438,7]
[359577682,1746137472312,-992.28,0.00036438,2]
[359577683,1746137472322,-1527.18,0.00036438,11]
[359577684,1746137472334,-493.89,0.00036438,11]
[359577685,1746137472343,-452.01,0.00036438,11]
[359577686,1746137472352,-663.7,0.00036438,11]
[359577687,1746137472362,-800.98,0.00036438,11]
[359577688,1746137472372,-2751.416,0.00036438,7]
[359577689,1746137472381,-2110.0,0.00036438,2]
[359577690,1746137472390,-151.0,0.00036438,7]
[359577691,1746137472400,-151.0,0.00036438,7]
[359577692,1746137472410,-620.25,0.00036438,11]
[359577693,1746137472419,-822.32,0.00036438,11]
[359577694,1746137472429,-1695.93,0.00036438,2]
[359577695,1746137472438,-450.0,0.00036438,11]
[359577696,1746137472448,-450.0,0.00036438,11]
[359577697,1746137472457,-450.0,0.00036438,11]
[359577698,1746137472467,-674.63,0.00036438,11]
[359577699,1746137472476,-450.0,0.00036438,11]
[359577700,1746137472486,-151.0,0.00036438,7]
[359577701,1746137472495,-151.0,0.00036438,7]
[359577702,1746137472504,-450.0,0.00036438,11]
[359577703,1746137472514,-450.0,0.00036438,11]
[359577704,1746137472524,-1932.82,0.00036438,11]
[359577705,1746137472533,-1153.29,0.00036438,11]
[359577706,1746137472542,-450.0,0.00036438,11]
[359577707,1746137472551,-450.0,0.00036438,11]
[359577708,1746137472560,-450.0,0.00036438,11]
[359577709,1746137472570,-578.29,0.00036438,11]
[359577710,1746137472579,-450.0,0.00036438,11]
[359577711,1746137472588,-450.0,0.00036438,11]
[359577712,1746137472597,-450.0,0.00036438,11]
[359577713,1746137472606,-450.0,0.00036438,11]
[359577714,1746137472615,-715.1,0.00036438,11]
[359577715,1746137472624,-450.0,0.00036438,11]
[359577716,1746137472633,-450.0,0.00036438,11]
[359577717,1746137472642,-550.39629675,0.00036438,11]
[359577718,1746137472651,-450.0,0.00036438,11]
[359577719,1746137472660,-450.0,0.00036438,11]
[359577720,1746137472669,-451.73,0.00036438,11]
[359577721,1746137472678,-535.69052612,0.00036438,11]
[359577722,1746137472687,-493.94,0.00036438,11]
[359577723,1746137472697,-450.0,0.00036438,11]
[359577724,1746137472706,-650.18,0.00036438,11]
[359577725,1746137472716,-450.0,0.00036438,11]
[359577726,1746137472726,-450.0,0.00036438,11]
[359577727,1746137472735,-450.0,0.00036438,11]
[359577728,1746137472744,-613.48,0.00036438,11]
[359577729,1746137472754,-450.0,0.00036438,11]
[359577730,1746137472764,-484.13,0.00036438,11]
[359577731,1746137472774,-450.0,0.00036438,11]
[359577732,1746137472783,-391.87105792,0.00036438,11]
[359577733,1746137472792,-450.0,0.00036438,11]
[359577734,1746137472802,-450.0,0.00036438,11]
[359577735,1746137472811,-450.0,0.00036438,11]
[359577736,1746137472820,-613.96,0.00036438,11]
[359577737,1746137472829,-450.0,0.00036438,11]
[359577738,1746137472839,-450.0,0.00036438,11]
[359577739,1746137472849,-1485.28,0.00036438,11]
[359577740,1746137472858,-450.0,0.00036438,11]
[359577741,1746137472867,-766.2,0.00036438,11]
[359577742,1746137472876,-637.94,0.00036438,11]
[359577743,1746137472886,-450.0,0.00036438,11]
[359577744,1746137472895,-450.0,0.00036438,11]
[359577745,1746137472904,-450.0,0.00036438,11]
[359577746,1746137472913,-575.81,0.00036438,11]
[359577747,1746137472923,-450.0,0.00036438,11]
[359577748,1746137472933,-1051.09,0.00036438,11]
[359577749,1746137472942,-450.0,0.00036438,11]
[359577750,1746137472952,-450.0,0.00036438,11]
[359577751,1746137472961,-450.0,0.00036438,11]
[359577752,1746137472971,-450.0,0.00036438,11]
[359577753,1746137472980,-450.0,0.00036438,11]
[359577754,1746137472989,-450.0,0.00036438,11]
[359577755,1746137472999,-1057.75,0.00036438,11]
[359577756,1746137473009,-450.0,0.00036438,11]
[359577757,1746137473018,-450.0,0.00036438,11]
[359577758,1746137473027,-307.246909,0.00036438,7]
[359577759,1746137473036,-450.0,0.00036438,11]
[359577760,1746137473045,-307.246909,0.00036438,7]
[359577761,1746137473054,-934.72,0.00036438,11]
[359577762,1746137473063,-450.0,0.00036438,11]
[359577763,1746137473072,-450.0,0.00036438,11]
[359577764,1746137473082,-450.0,0.00036438,11]
[359577765,1746137473091,-151.0,0.00036438,7]
[359577766,1746137473100,-540.83,0.00036438,11]
[359577767,1746137473109,-450.0,0.00036438,11]
[359577768,1746137473119,-621.12,0.00036438,11]
[359577769,1746137473128,-1060.9,0.00036438,11]
[359577770,1746137473137,-496.63,0.00036438,11]
[359577771,1746137473146,-511.56,0.00036438,11]
[359577772,1746137473155,-281.406446,0.00036438,7]
[359577773,1746137473164,-450.0,0.00036438,11]
[359577774,1746137473174,-165.666419,0.00036438,7]
[359577775,1746137473183,-450.0,0.00036438,11]
[359577776,1746137473192,-281.406446,0.00036438,7]
[359577777,1746137473201,-165.666419,0.00036438,7]
[359577778,1746137473211,-809.04,0.00036438,11]
[359577779,1746137473220,-450.0,0.00036438,11]
[359577780,1746137473229,-450.0,0.00036438,11]
[359577781,1746137473238,-1233.93,0.00036438,11]
[359577782,1746137473247,-450.0,0.00036438,11]
[359577783,1746137473257,-450.0,0.00036438,11]
[359577784,1746137473268,-450.0,0.00036438,11]
[359577785,1746137473278,-450.0,0.00036438,11]
[359577786,1746137473288,-368.04678831,0.00036438,11]
[359577787,1746137473298,-450.0,0.00036438,11]
[359577788,1746137473307,-502.92,0.00036438,11]
[359577789,1746137473316,-485.97,0.00036438,11]
[359577790,1746137473328,-708.39,0.00036438,11]
[359577791,1746137473337,-450.0,0.00036438,11]
[359577792,1746137473346,-450.0,0.00036438,11]
[359577793,1746137473355,-450.0,0.00036438,11]
[359577794,1746137473364,-450.0,0.00036438,11]
[359577795,1746137473374,-450.0,0.00036438,11]
[359577796,1746137473383,-888.78,0.00036438,11]
[359577797,1746137473392,-756.54,0.00036438,11]
[359577798,1746137473402,-1491.46,0.00036438,11]
[359577799,1746137473411,-450.0,0.00036438,11]
[359577800,1746137473421,-2171.12,0.00036438,11]
[359577801,1746137473430,-450.0,0.00036438,11]
[359577802,1746137473439,-583.30243827,0.00036438,2]
[359577803,1746137473448,-603.85,0.00036438,11]
[359577804,1746137473458,-1306.96,0.00036438,11]
[359577805,1746137473467,-674.77,0.00036438,11]
[359577806,1746137473476,-450.0,0.00036438,11]
[359577807,1746137473486,-860.69,0.00036438,11]
[359577808,1746137473495,-450.0,0.00036438,11]
[359577809,1746137473505,-450.0,0.00036438,11]
[359577810,1746137473515,-1075.77,0.00036438,11]
[359577811,1746137473524,-450.0,0.00036438,11]
[359577812,1746137473534,-450.0,0.00036438,2]
[359577813,1746137473543,-450.0,0.00036438,11]
[359577814,1746137473552,-657.82,0.00036438,11]
[359577815,1746137473561,-1134.06,0.00036438,11]
[359577816,1746137473570,-532.8,0.00036438,11]
[359577817,1746137473579,-450.0,0.00036438,11]
[359577818,1746137473589,-982.42,0.00036438,11]
[359577819,1746137473598,-2054.77,0.00036438,11]
[359577820,1746137473608,-450.0,0.00036438,11]
[359577821,1746137473619,-450.0,0.00036438,2]
[359577822,1746137473629,-469.82,0.00036438,11]
[359577823,1746137473638,-450.0,0.00036438,11]